Cogmind - Beta 11 X10 @@@ ROGUE MODE // 2022.03.17 @ 19:35:52 Player: maxwell Result: Destroyed by D-53 Grenadier with Mini Grenade Launcher Performance ------------- Evolutions (0) 0 Regions Visited (4) 800 Robots Destroyed (34) 170 Value Destroyed (758) 758 Prototype IDs (5) 100 Alien Tech Used (0) 0 Bonus (-1676) -1676 TOTAL SCORE: 152 Bonus ------- Friendly Fire -1676 Cogmind --------- Core Integrity 0/250 Matter 235/300 Energy 265/265 System Corruption 0% Temperature Cool (0) Movement Treading (160) Location -9/Mines Parts ------- > --- POWER (1) -------- Improved Ion Engine > --- PROPULSION (2) --- Light Treads Light Treads > --- UTILITY (2) ------ Large Storage Unit > --- WEAPON (2) ------- Assault Rifle Assault Rifle > --- INVENTORY (15) --- Light Treads Light Treads YI-UF0's Bottomless Matter Pit (250) Structural Scanner Experimental Sensor Array Makeshift Transmission Jammer Improved Trap Extractor (0/6) Gauss Rifle Grenade Launcher Grenade Launcher Grenade Launcher Powered Hammer Peak State ------------ > --- POWER ------------ Ion Engine > --- PROPULSION ------- Light Treads Light Treads > --- UTILITY ---------- Large Storage Unit YI-UF0's Bottomless Matter Pit > --- WEAPON ----------- Assault Rifle Assault Rifle > --- INVENTORY -------- Light Treads Light Treads Structural Scanner Experimental Sensor Array Utility Shielding Medium Laser Light Assault Rifle Light Assault Rifle Light Assault Rifle Grenade Launcher Grenade Launcher Hammer EMP Trap EMP Trap [Rating: 17] Favorites ----------- Power Improved Ion Engine Engine Improved Ion Engine Propulsion Light Treads Treads Light Treads Utility Large Storage Unit Storage Large Storage Unit Processor Targeting Computer Protection Light Armor Plating Weapon Assault Rifle Ballistic Gun Assault Rifle Launcher Grenade Launcher Impact Weapon Hammer Build | -11 -10 -10 -10 -9 ------- Run | Scr Mat Min Exi Min Slots Evolved . | . . . . . Power . | . . . . . Propulsion . | . . . . . Utility . | . . . . . Weapon . | . . . . . Parts Attached 28 | 6 8 9 . 5 Power 3 | 1 . 2 . . Engine 3 | 1 . 2 . . Core . | . . . . . Reactor . | . . . . . Propulsion 4 | 2 . 1 . 1 Treads 4 | 2 . 1 . 1 Leg . | . . . . . Wheel . | . . . . . Hover . | . . . . . Flight . | . . . . . Utility 7 | 1 2 3 . 1 Device . | . . . . . Storage 3 | 1 1 1 . . Processor 1 | . 1 . . . Hackware . | . . . . . Protection 3 | . . 2 . 1 Artifact . | . . . . . Weapon 14 | 2 6 3 . 3 Energy Gun . | . . . . . Energy Cannon . | . . . . . Ballistic Gun 9 | 2 3 2 . 2 Ballistic Cannon . | . . . . . Launcher 2 | . . 1 . 1 Special Weapon . | . . . . . Impact Weapon 3 | . 3 . . . Slashing Weapon . | . . . . . Piercing Weapon . | . . . . . Special Melee Weapon . | . . . . . Unidentified Prototypes 1 | . . 1 . . Parts Lost 7 | . . 3 . 4 Power 1 | . . 1 . . Propulsion 2 | . . 1 . 1 Utility 2 | . . . . 2 Weapon 2 | . . 1 . 1 Highest Loss Streak 3 | . . 3 . 3 To Critical Strikes . | . . . . . Average Slot Usage (%) 99 | . 99 99 100 99 Engine 14 | . 14 14 14 14 Treads 27 | . 28 27 28 28 Storage 14 | . 14 14 14 14 Processor 6 | . 13 5 . . Protection 7 | . . 8 14 14 Ballistic Gun 27 | . 26 27 28 26 Naked Turns . | . . . . . Heaviest Build 35 | 12 27 34 34 35 Greatest Support 40 | 40 40 40 40 40 Greatest Overweight (x) 1 | 1 . . . . Average Overweight (x) . | . . . . . Largest Inventory Capacity 15 | 8 15 15 15 15 Average Capacity 14 | 7 14 15 15 15 Most Carried 15 | 4 15 15 15 15 Average Carried 13 | 1 11 13 14 14 Final Capacity 15 | 8 15 15 15 15 Final Carried 15 | 4 15 13 15 12 Class Distribution -------------------- 71% | Mutant 28% | Commander-Mutant Dominant Class ---------------- Mutant | -10/Materials Mutant | -10/Mines Commander-Mutant | -10/Exiles Commander-Mutant | -9/Mines Resources | -11 -10 -10 -10 -9 ----------- Run | Scr Mat Min Exi Min Matter Collected 1480 | 175 456 493 211 145 Remotely . | . . . . . Salvage Created 1391 | . 639 362 211 179 Parts 95 | . 54 22 9 10 Haulers Intercepted 2 | . 2 . . . Recyclers Shooed . | . . . . . Parts Field Recycled . | . . . . . Retrieved Matter . | . . . . . Parts Self-Destructed . | . . . . . Prevented . | . . . . . Kills | -11 -10 -10 -10 -9 ------- Run | Scr Mat Min Exi Min Combat Hostiles Destroyed 34 | . 14 6 . 14 Guns 21 | . 14 5 . 2 AOE 13 | . . 1 . 12 Classes Destroyed 8 | . 6 . . 2 Worker 1 | . . . . 1 Builder 2 | . 2 . . . Hauler 2 | . 2 . . . Operator 1 | . 1 . . . Watcher 3 | . 3 . . . Swarmer 6 | . 6 . . . Grunt 18 | . 8 6 . 4 Assembled 12 | . . . . 12 Best Kill Streak 12 | . 5 2 . 12 Combat Bots Only 12 | . 4 2 . 12 Max Kills in Single Turn 3 | . 2 1 . 3 Gunslinging 1 | . 1 . . 1 Exploded 3 | . . 1 . 3 Melee . | . . . . . Uniques/NPCs Destroyed 1 | . . 1 . . YI-UF0 (-10/Mines) Combat | -11 -10 -10 -10 -9 -------- Run | Scr Mat Min Exi Min Damage Taken 1301 | . 283 393 . 625 Core 263 | . 53 92 . 118 Absorbed by Shields . | . . . . . Core Remaining (%) 100 | 100 . . . . Volleys Fired 127 | . 49 35 23 20 Largest 2 | . 2 2 2 2 Hottest 40 | . 40 40 40 40 Shots Fired 243 | . 98 69 46 30 Gun 232 | . 98 68 46 20 Cannon . | . . . . . Launcher 11 | . . 1 . 10 Special . | . . . . . Kinetic 232 | . 98 68 46 20 Thermal . | . . . . . Explosive 11 | . . 1 . 10 Electromagnetic . | . . . . . Robot Hit Streak 22 | . 19 16 12 22 Robot Miss Streak 3 | . 3 2 2 1 Penetration Max . | . . . . . Secondary Targets 2 | . 1 . . 1 Max Gunslinging Chain 1 | . 1 . . 1 Shots Hit Robots 179 | . 72 48 39 20 Core Hits 99 | . 32 18 8 41 Critical Kills 1 | . 1 . . . Critical Parts Destroyed . | . . . . . Critical Strikes 1 | . 1 . . . Destroy 1 | . 1 . . . Melee Attacks 31 | . 31 . . . Impact 31 | . 31 . . . Slashing . | . . . . . Piercing . | . . . . . Sneak Attacks 2 | . 2 . . . Combat Hostiles . | . . . . . Follow-up Attacks . | . . . . . Damage Inflicted 3630 | . 1023 704 409 1494 Guns 2154 | . 907 600 409 238 Cannons . | . . . . . Explosions 1332 | . . 76 . 1256 Melee 109 | . 109 . . . Ramming 35 | . 7 28 . . Kinetic 2154 | . 907 600 409 238 Thermal . | . . . . . Explosive 1332 | . . 76 . 1256 Electromagnetic . | . . . . . Impact 109 | . 109 . . . Slashing . | . . . . . Piercing . | . . . . . Highest Corruption . | . . . . . Average Corruption . | . . . . . Corruption Purged . | . . . . . Corruption Blocked . | . . . . . Overload Shots . | . . . . . Overflow Damage 82 | . 49 . . 33 Projectiles . | . . . . . Explosions 33 | . . . . 33 Melee 49 | . 49 . . . Knockbacks 1 | . 1 . . . Impact 1 | . 1 . . . Kinetic . | . . . . . Secondary . | . . . . . Self-Inflicted Damage 53 | . . . . 53 Shots 3 | . . . . 3 Rammed 10 | . 4 6 . . Targets Rammed 10 | . 4 6 . . Kicked . | . . . . . Crushed . | . . . . . Highest Temperature 42 | . 20 20 . 42 Average Temperature 15 | . 14 5 . 21 Received Heat Transfer 426 | . 111 228 . 87 Siege Activations . | . . . . . Robots Corrupted . | . . . . . Combat Hostiles . | . . . . . Parts Fried 4 | . 4 . . . Impact Corruptions 3 | . 3 . . . Robots Melted . | . . . . . Combat Hostiles . | . . . . . Parts Melted . | . . . . . Heat Transferred . | . . . . . Parts Sabotaged . | . . . . . Parts Stolen . | . . . . . Parts Stripped . | . . . . . Power Chain Reactions . | . . . . . Missiles Intercepted . | . . . . . Alert | -11 -10 -10 -10 -9 ------- Run | Scr Mat Min Exi Min Peak Influence 296 | . 296 209 . 55 Initial 74 | . . 74 . . Average 64 | . 105 50 . 1 Maximum Alert Level 1 | . 1 1 . . Low Security (%) 96 | 100 94 97 . 100 Level 1 3 | . 5 2 . . Level 2 . | . . . . . Level 3 . | . . . . . Level 4 . | . . . . . Level 5 . | . . . . . High Security . | . . . . . Max Security . | . . . . . Squads Dispatched 4 | . 4 . . . Investigation 3 | . 3 . . . Extermination . | . . . . . Reinforcement 1 | . 1 . . . Assault . | . . . . . Garrison . | . . . . . Intercept . | . . . . . Construction Impeded . | . . . . . Haulers Reinforced . | . . . . . Active Scanning Responses . | . . . . . Cargo Convoy Interrupts . | . . . . . Stealth | -11 -10 -10 -10 -9 --------- Run | Scr Mat Min Exi Min Distress Signals . | . . . . . Communications Jammed . | . . . . . Distress Signals . | . . . . . Times Spotted 57 | . 25 8 . 24 Peak Tracking Total 12 | . 4 2 . 12 Tactical Retreats 1 | . . . . 1 Traps | -11 -10 -10 -10 -9 ------- Run | Scr Mat Min Exi Min Traps Triggered . | . . . . . Indirectly . | . . . . . Trap Hack Attempts . | . . . . . Triggered . | . . . . . Disarmed . | . . . . . Reprogrammed . | . . . . . Reused . | . . . . . Traps Extracted . | . . . . . Installed . | . . . . . Triggered . | . . . . . Most Traps Carried 3 | . . 3 . . Machines | -11 -10 -10 -10 -9 ---------- Run | Scr Mat Min Exi Min Machines Disabled 1 | . . 1 . . Max in Single Turn 1 | . . 1 . . Machines Sabotaged . | . . . . . Garrisons Compromised . | . . . . . Overloaded Fab Kills . | . . . . . Hacking | -11 -10 -10 -10 -9 --------- Run | Scr Mat Min Exi Min Machines Accessed 10 | . 8 . 1 1 Terminals 6 | . 6 . . . Fabricators . | . . . . . Repair Stations . | . . . . . Recycling Units 2 | . 2 . . . Scanalyzers . | . . . . . Garrison Access . | . . . . . Total Hacks 31 | . 29 . 1 1 Successful 20 | . 18 . 1 1 Failed 10 | . 10 . . . Catastrophic 3 | . 3 . . . Database Lockouts 1 | . 1 . . . Manual 23 | . 23 . . . Terminals 25 | . 25 . . . Fabricators . | . . . . . Repair Stations . | . . . . . Recycling Units 4 | . 4 . . . Scanalyzers . | . . . . . Garrison Access . | . . . . . Terminal Hacks 13 | . 11 . 1 1 Record 2 | . 1 . 1 . Part Schematic 1 | . 1 . . . Robot Analysis 4 | . 4 . . . Prototype ID Bank 3 | . 3 . . . Open Door 1 | . . . . 1 Terminal Index 1 | . 1 . . . Locate Traps 1 | . 1 . . . Fabricator Hacks . | . . . . . Repair Station Hacks . | . . . . . Recycling Unit Hacks 2 | . 2 . . . Retrieve Components 2 | . 2 . . . Scanalyzer . | . . . . . Garrison Access Hacks . | . . . . . Unauthorized Hacks 5 | . 5 . . . Terminals 3 | . 3 . . . Track 1 | . 1 . . . Botnet 1 | . 1 . . . Operators 1 | . 1 . . . Fabricators . | . . . . . Repair Stations . | . . . . . Recycling Units 2 | . 2 . . . Tunnel 2 | . 2 . . . Scanalyzers . | . . . . . Garrison Access . | . . . . . Data Cores Recovered . | . . . . . Used . | . . . . . Hacking Detections 6 | . 6 . . . Full Trace Events . | . . . . . Feedback Events . | . . . . . Feedback Blocked . | . . . . . Robot Schematics Acquired . | . . . . . Robots Built . | . . . . . Authchips . | . . . . . Time . | . . . . . Total Robot Build Rating . | . . . . . Part Schematics Acquired 1 | . 1 . . . Parts Built . | . . . . . Authchips . | . . . . . Time . | . . . . . Total Part Build Rating . | . . . . . Parts Repaired . | . . . . . Time . | . . . . . Parts Recycled . | . . . . . Recycled Matter . | . . . . . Retrieved Matter . | . . . . . Retrieved Components 12 | . 12 . . . Parts Scanalyzed . | . . . . . Part Schematics Acquired . | . . . . . Parts Damaged . | . . . . . Bothacking | -11 -10 -10 -10 -9 ------------ Run | Scr Mat Min Exi Min Used RIF Installer . | . . . . . Robots Hacked . | . . . . . Non-combat . | . . . . . Combat . | . . . . . Robot Hacks Applied . | . . . . . Relay Couplers Released . | . . . . . Fabnet Peak Effective % . | . . . . . Robots Rewired 5 | . . . 5 . Allies Hacked . | . . . . . Hacks Repelled . | . . . . . Allies | -11 -10 -10 -10 -9 -------- Run | Scr Mat Min Exi Min Total Allies 8 | . . 3 5 . Largest Group 8 | . . 3 8 8 Highest-Rated Group 93 | . . 40 93 93 Highest-Rated Ally 21 | . . 16 21 21 Total Orders 11 | . . 2 6 3 STAY 7 | . . 1 4 2 FOLLOW 4 | . . 1 2 1 Ally Attacks 32 | . . 2 . 30 Total Damage 288 | . . 27 . 261 Kills 8 | . . . . 8 Allies Corrupted . | . . . . . Allies Melted . | . . . . . Intel | -11 -10 -10 -10 -9 ------- Run | Scr Mat Min Exi Min Robot Analysis Total 4 | . 4 . . . Derelict Logs Recovered 3 | . . 3 . . Drone Launches . | . . . . . Drone Recoveries . | . . . . . Exploration | -11 -10 -10 -10 -9 ------------- Run | Scr Mat Min Exi Min Turns Passed 4282 | 83 1374 1352 993 480 Spaces Moved 2251 | 48 687 744 513 259 Core 6 | 6 . . . . Treads 2245 | 42 687 744 513 259 Legs . | . . . . . Wheels . | . . . . . Hover . | . . . . . Flight . | . . . . . Fastest Speed 50 | 50 160 160 160 160 Average Speed 159 | 148 160 160 160 160 Slowest Speed 160 | 160 160 160 160 160 Overloaded Moves . | . . . . . Propulsion Burnouts . | . . . . . Robots Hopped . | . . . . . Cave-ins Triggered . | . . . . . Exploration Rate (%) 70 | 4 93 99 87 68 Regions Visited 4 Branch Regions 3 Pre-discovered Areas 3 | . 2 . 1 . Known Exits Taken 1 | . . . 1 . Unknown Exits Taken 3 | 1 1 1 . . Scrap Searched 4 | . . 1 . 3 Spaces Dug 3 | . 3 . . . Terrain Destroyed 58 | . 3 6 . 49 Melee 3 | . 3 . . . Projectile . | . . . . . AOE 55 | . . 6 . 49 Terrain Rammed . | . . . . . Walls Destroyed . | . . . . . Machines Disabled . | . . . . . Actions | -11 -10 -10 -10 -9 --------- Run | Scr Mat Min Exi Min Total 2634 | 57 804 838 640 295 Wait 41 | . 14 18 3 6 Move 2247 | 47 686 743 512 259 Hop . | . . . . . Pick Up 32 | 4 11 12 3 2 Fast Attach 10 | 6 1 3 . . Attach 8 | . . 4 . 4 Detach 3 | . . 2 . 1 Swap 10 | . 7 2 . 1 Drop 17 | . 1 13 1 2 Fire 127 | . 49 35 23 20 Melee 31 | . 31 . . . Ram . | . . . . . Kick . | . . . . . Crush 10 | . 4 6 . . Escape Stasis . | . . . . . Rewire 98 | . . . 98 . Trap . | . . . . . Miscellaneous . | . . . . . Route ------- -11/Scrapyard -10/Materials (discovered 3 exits: [*Mat x2] / [*Min]) -10/Mines (discovered 3 exits: [*Mat x2] / *Exi) -10/Exiles (discovered 2 exits: *Min x2) -9/Mines History --------- Turn | Location | Event 7 | -11/Scrapyard | Discovered new exit (range 16) 84 | -11/Scrapyard | Entered Materials 304 | -10/Materials | Build established: Mutant 667 | -10/Materials | Discovered new exit (range 12) 726 | -10/Materials | Central database locked down 951 | -10/Materials | Discovered new exit (range 14) 1209 | -10/Materials | Discovered new exit (range 8) 1458 | -10/Materials | Entered Mines 1530 | -10/Mines | Discovered new exit (range 7) 1629 | -10/Mines | Found a damaged Exp. Sensor Array with a note attached 1632 | -10/Mines | Found Prototype Device 1814 | -10/Mines | Core integrity fell below 50% 1841 | -10/Mines | Lost 3 parts (1p1n1w) 1891 | -10/Mines | Found a hidden stash of uninstalled traps 1921 | -10/Mines | YI-UF0 nonchalantly dropped a Grenade Launcher on the ground 1976 | -10/Mines | Destroyed YI-UF0 1984 | -10/Mines | Found Prototype Storage 1984 | -10/Mines | Identified YI-UF0's Bottomless Matter Pit 2129 | -10/Mines | Learned Materials emergency access door positions 2132 | -10/Mines | Learned Materials garrison access intel 2177 | -10/Mines | Assisted by bots powering up and referring to "LRC-V3" 2254 | -10/Mines | Joined a pair of Derelicts in attacking an 0b10 outpost 2698 | -10/Mines | Discovered new exit (range 10) 2754 | -10/Mines | Deemed a non-threat by the Exiles lab entrance 2754 | -10/Mines | Discovered new exit (range 5) 2810 | -10/Mines | Entered Exiles 2810 | -10/Exiles | Found Exiles lab destroyed 2810 | -10/Exiles | Accompanied by 3 allies 2811 | -10/Exiles | Identified exit to Mines 3190 | -10/Exiles | Build established: Commander-Mutant 3325 | -10/Exiles | Learned location of Zion (-7) 3803 | -10/Exiles | Entered Mines 3803 | -9/Mines | Accompanied by 8 allies 3813 | -9/Mines | Met a Derelict who couldn't figure out how to use a Trap Extractor 3814 | -9/Mines | Met a Derelict bent on vengeance 4010 | -9/Mines | A weapon hastily lodged in a ceiling crevice suddenly fell to the ground 4118 | -9/Mines | Assembled infested the area 4166 | -9/Mines | Destroyed 12 combat bots 4283 | -9/Mines | Core integrity fell below 20% 4283 | -9/Mines | Destroyed by D-53 Grenadier with Mini Grenade Launcher Last Messages --------------- 04199_ Found 38 Matter. 04200_ Acquired 38 matter. 04203_ Searching scrap... 04203_ Found Field Recycling Unit. 04203_ Found ECM Suite. 04203_ Found Propulsion Shielding. 04203_ Found Particle Cannon. 04203_ Found 42 Matter. 04204_ Acquired 42 matter. 04210_ K-01 Serf cleans the Laser Drill. 04258_ Critical hit (Burn: +37). 04269_ G-47 Trooper destroyed. 04269_ Switching to secondary target: G-34 Mercenary. 04269_ G-34 Mercenary destroyed. 04272_ K-01 Serf destroyed. 04273_ Laser Drill disabled. 04275_ Lgt. Treads destroyed. 04277_ Lgt. Armor Plating destroyed. 04281_ The unstable cave ceiling collapses. 04282_ Lgt. Armor Plating destroyed. Map ----- +----------------------------------------------------+ | ??????????????????????????????????????? | | ??????????????????????????????????????? | | ??????????????????????????????????????? | | ??????????????????????????????????????? | | ??????????????????????????????????????? | | ??????????????????????????????????????? | | ??????????????????????????????????????? | | ??????????????????????????????????????? | | ????########??????????????????????????? | | ????#""""""#??????????????????????????? | | ????#= !! ]#??????????????????????????? | | ?##### ##??????????????????????????? | | ? #?#! =##??????????????????????????? | | ?# #### ####??????? ????????????????? | | ?# ## X ###### #?????????????????? | | ?# ## ##??????????####??? | | ?# ## ## ????????## ##?? | | ## ## ########## ????????# #?? | | #????????# ????????# ##? | | #### ### ####????????# ???????# #? | | ???# #?# #???????????# #####???# #? | | ???# #?# #???????????# # ##?## #? | | ???# #?# #???????????# ### #?? | | ???# #?# #??????????## #?? | | ???# ### #??????????# " #?? | | ##?# #??????????# @ " #?? | | #?#######??????????# " #?? | | #?????????????????# #?? | | #?????????????????## #?? | | ##??????????????????# #?? | | ##???????????????????# #?? | | ????????????????????# #?? | | ????????????????? ### dd #?? | | ???????????????# ##### ##?## =%! ##?? | | ?????????????????????####????##### #??? | | ?????????????????????????????????#!#??? | | ?????????????????????????????????#]#??? | | ?????????????????????????????????# #??? | | ??????????????????????# #???????#!#??? | | ?????????????????????? #???####!#??? | | ????????????????????? ???# ! #??? | | ?#???????????????????? #??# %#??? | | ?# ??????????????????? " ???# ###??? | | ?? ???????????????????# #???# #????? | | ?? ???????????????????# #????# #????? | | ?? #????????????####### #????# #????? | | ?? #?????????### #????# #????? | | ?? #???????### ##???# #????? | | ??# #?????### ##??# #????? | | ??# #????## # % #??# #????? | +----------------------------------------------------+ Best States ------------- Heat Dissipation 25 Energy Generation 12 Energy Capacity 265 Matter Stores 300 Matter Capacity 300 Sight Range 16 Terrain Scan Density 10 Armor Coverage 150 Utility Shielding 33 Evasion (%) 40 Targeting Accuracy 5 Recoil Reduction 2 Item Schematics ----------------- Huge Storage Unit | -10/Materials | Hacked Robot Schematics ------------------ None Fabricated ------------ Nothing Alien Tech Used ----------------- None Achievements -------------- None Challenges ------------ None Game ------ Seed ShockTachyonWell Manual? 0 Play Time 00:15:00 Cumulative 203.5 hours Start 2022.03.17 @ 19:23:08 End 2022.03.17 @ 19:35:52 Sessions 1 Manual Loads 0 Difficulty Rogue Special Mode None Game No. 311 Rogue 289 Adventurer 4 Explorer 18 Win Type - Total 10 Types 8/0/0/2/0/0/0/0/0 Lore% 69 Gallery% 86 Achievement% 70 Wizard Run 0 Options --------- ASCII 0 Keyboard 1 Movement Numpad Keybinds 0 Fullscreen 1 Font 18/SmallcapsGlow Map View 76x50 Tactical HUD 1 Map Filters NONE Filters NONE Steam 1 RUN: f454a73e-bb08-4966-8c99-a51dbcdcd4d5